bitfinex-derivatives/quotes_ETHF0:USTF0_20251008
["timestamp","ask_amount","ask_price","bid_price","bid_amount"]
[1759902834669,0.40850654,4432.8,4432.7,0.7528]
[1759902835067,0.62730654,4432.8,4432.7,0.7528]
[1759902835271,0.84710654,4432.8,4432.7,0.7528]
[1759902835472,1.15910654,4432.8,4432.7,0.7528]
[1759902835666,0.84710654,4432.8,4432.7,0.7528]
[1759902837169,3.96097654,4432.8,4432.0,0.89977757]
[1759902837368,1.15657,4432.3,4432.2,0.316]
[1759902837568,1.15659,4432.1,4432.0,0.4393]
[1759902838269,0.84459,4432.1,4432.0,0.8761]
[1759902838970,0.62479,4432.1,4432.0,0.8761]
[1759902839471,0.84459,4432.1,4432.0,0.8761]
[1759902842376,0.40599,4432.1,4432.0,0.8761]
[1759902844172,0.40598,4432.2,4432.1,0.316]
[1759902844378,0.40598,4432.2,4432.1,1.52927757]
[1759902844581,0.62478,4432.2,4432.1,1.52927757]
[1759902844870,0.84458,4432.2,4432.1,0.7528]
[1759902845075,1.15658,4432.2,4432.1,0.7528]
[1759902845265,0.84458,4432.2,4432.1,0.7528]
[1759902845472,0.84038,4432.2,4432.1,0.7528]
[1759902845678,1.15238,4432.2,4432.1,0.7528]
[1759902846676,1.15238,4432.2,4432.1,0.5388]
[1759902847073,0.2156,4432.0,4431.9,0.3351]
[1759902847375,0.2156,4432.0,4431.5,1.74604787]
[1759902847376,0.7448,4431.7,4431.6,0.5564]
[1759902847572,0.9708,4431.7,4431.6,0.5564]
[1759902847772,1.2411,4431.7,4431.2,40.8]
[1759902847978,0.62326,4431.3,4431.2,41.1351]
[1759902849081,0.40606,4431.3,4431.2,41.1351]
[1759902849383,0.226,4431.6,4431.5,0.3508]
[1759902849679,0.63204,4431.6,4431.5,1.68367757]
[1759902850580,0.40604,4431.6,4431.5,1.68367757]
[1759902851181,0.62324,4431.6,4431.5,1.68367757]
[1759902851883,0.62324,4431.6,4431.5,0.9072]
[1759902852782,0.40604,4431.6,4431.5,0.9072]
[1759902853785,3.2078,4431.9,4431.8,0.7816]
[1759902853979,0.63198,4432.2,4432.1,0.7816]
[1759902854584,0.84918,4432.2,4432.1,0.7816]
[1759902855580,0.40602,4431.8,4431.7,40.8]
[1759902855785,0.71802,4431.8,4431.7,40.8]
[1759902856180,0.83884,4431.6,4431.5,0.9072]
[1759902860887,3.83979,4432.2,4432.1,0.7816]
[1759902861682,4.05699,4432.2,4432.1,0.7816]
[1759902863288,4.59849,4432.2,4432.1,0.7816]
[1759902863487,4.59849,4432.2,4432.1,0.5564]
[1759902863882,3.2078,4432.2,4432.1,0.7747]
[1759902864687,3.4312,4432.2,4432.1,0.7747]
[1759902868091,0.40597,4432.3,4432.2,0.3376]
[1759902868291,0.40597,4432.3,4432.2,0.7669]
[1759902868585,0.62937,4432.3,4432.2,0.7669]
[1759902870490,0.7771,4432.6,4432.5,0.6806]
[1759902870688,1.08314,4432.6,4432.5,0.8989]
[1759902870889,3.2078,4432.7,4432.6,0.5486]
[1759902871094,3.2078,4433.3,4432.7,0.7669]
[1759902871494,3.2078,4433.3,4433.2,0.4293]
[1759902871694,3.2078,4433.3,4433.2,0.7669]
[1759902872499,3.21039392,4433.3,4433.2,0.7669]
[1759902873696,3.21039392,4433.3,4433.2,41.5669]
[1759902873894,3.21039392,4433.3,4433.2,42.53410746]
[1759902875197,0.00259392,4433.3,4433.2,42.53410746]
[1759902876287,0.00259392,4433.3,4433.2,41.7929]
[1759902876490,0.00259392,4433.3,4433.2,42.76010746]
[1759902877700,0.00259392,4433.3,4433.2,41.7929]
[1759902878601,0.00259392,4433.3,4433.2,41.5669]
[1759902878804,0.77109392,4433.3,4433.2,0.7669]
[1759902881004,0.99709392,4433.3,4433.2,0.7669]
[1759902881606,0.67129392,4433.3,4433.2,0.7669]
[1759902882106,0.44639392,4433.3,4433.2,0.7669]
[1759902882306,0.00259392,4433.3,4433.2,0.7669]
[1759902882506,0.00259392,4433.3,4433.2,41.7929]
[1759902883911,3.2078,4434.4,4433.8,0.4552]
[1759902884116,4.04518,4434.4,4434.3,1.74980746]
[1759902884609,3.61358,4434.4,4434.3,1.74980746]
[1759902885010,3.82994343,4434.4,4434.3,1.75219451]
[1759902885311,4.04804343,4434.4,4434.3,0.78498705]
[1759902887112,4.37394343,4434.4,4434.3,0.32978705]
[1759902888319,4.37394343,4434.4,4434.3,0.55728705]
[1759902889118,4.37394343,4434.4,4434.3,0.00238705]
[1759902889615,9.37394343,4434.4,4434.3,0.00238705]
[1759902893715,9.37394343,4434.4,4434.3,0.32978705]
[1759902893912,9.37394343,4434.4,4434.3,0.55728705]
[1759902894317,9.37394343,4434.4,4434.3,0.32978705]
[1759902894621,9.37394343,4434.4,4434.3,0.00238705]
[1759902896016,9.37394343,4434.4,4434.3,0.32978705]
[1759902896222,9.37394343,4434.4,4434.3,0.55728705]
[1759902897521,4.37394343,4434.4,4434.3,0.55728705]
[1759902897722,3.84244343,4434.4,4434.3,0.78498705]
[1759902898517,4.05594343,4434.4,4434.3,0.78498705]
[1759902899322,3.64226343,4434.4,4434.3,0.78498705]
[1759902900614,3.21066343,4434.4,4434.3,0.78498705]
[1759902901218,0.00286343,4434.4,4434.3,0.78498705]
[1759902904314,0.00286343,4434.4,4434.3,41.58498705]
[1759902906122,0.00286343,4434.4,4434.3,41.81098705]
[1759902906325,3.4198,4435.4,4435.3,0.7575]
[1759902906519,3.4198,4435.4,4435.3,1.72470746]
[1759902906720,3.2078,4435.4,4435.3,2.13040746]
[1759902907214,3.20960089,4435.4,4435.3,2.13040746]
[1759902908226,3.20960089,4435.4,4435.3,42.93040746]
[1759902908823,0.00180089,4435.4,4435.3,42.93040746]
[1759902911925,0.00180089,4435.4,4435.3,42.52470746]
[1759902912422,0.00180089,4435.4,4435.3,42.93040746]
[1759902912722,0.00180089,4435.4,4435.3,41.5575]
[1759902914029,0.00180089,4435.4,4435.3,1.72470746]
[1759902914725,0.00180089,4435.4,4435.3,1.95070746]
[1759902920936,3.6239,4436.5,4436.4,0.7575]
[1759902921234,3.61339,4436.5,4436.4,0.7575]
[1759902921635,3.82339,4436.5,4436.4,0.7575]
[1759902921835,3.82585954,4436.5,4436.4,0.7575]
[1759902922930,4.03195954,4436.5,4436.4,0.7575]
[1759902924838,4.03195954,4436.5,4436.4,1.72470746]
[1759902924839,3.21026954,4436.5,4436.4,1.72470746]
[1759902925040,0.00246954,4436.5,4436.4,1.72470746]
[1759902925834,0.00246954,4436.5,4436.4,1.53240349]
[1759902926833,0.00246954,4436.5,4436.4,1.75840349]
[1759902928142,0.00246954,4436.5,4436.4,42.55840349]
[1759902934753,0.63151,4437.3,4437.2,0.7575]
[1759902934946,0.40551,4437.3,4437.2,1.53240349]
[1759902935650,0.40805874,4437.3,4437.2,1.53240349]
[1759902935852,0.00254874,4437.3,4437.2,1.53240349]
[1759902936643,0.00254874,4437.3,4437.2,4.74020349]
[1759902936843,0.00254874,4437.3,4437.2,4.9205386]
[1759902937245,0.022,4437.9,4437.8,1.16187]
[1759902937444,0.022,4437.9,4437.8,5.37057349]
[1759902937853,0.022,4437.9,4437.8,46.17057349]
[1759902938154,0.02490552,4437.9,4437.8,46.17223596]
[1759902939851,0.40539,4438.7,4438.6,0.4325]
[1759902940152,0.40539,4438.7,4438.6,1.52720349]
[1759902940959,0.62526048,4438.7,4438.6,1.52720349]
[1759902943349,0.84106048,4438.7,4438.6,0.7523]
[1759902943552,1.18036048,4438.7,4438.6,0.7523]
[1759902943945,0.83924,4438.1,4438.0,0.8832]
[1759902944150,0.83924,4438.1,4438.0,1.65810349]
[1759902944457,1.79025397,4438.7,4438.6,0.7523]
[1759902944458,0.44587048,4438.7,4438.6,0.7523]
[1759902944656,0.44587048,4438.7,4438.6,1.52720349]
[1759902944955,1.06706048,4438.7,4438.6,1.52720349]
[1759902946258,1.06706048,4438.7,4438.6,0.7523]
[1759902946458,1.40636048,4438.7,4438.6,0.7523]
[1759902950862,1.40636048,4438.7,4438.6,0.3198]
[1759902951049,1.17854,4438.1,4438.0,0.2128]
[1759902951360,0.83924,4438.1,4438.0,0.5634]
[1759902951560,0.83924,4438.1,4438.0,0.8832]
[1759902953958,0.40544,4438.1,4438.0,0.8832]
[1759902960161,3.5471,4438.6,4438.5,0.2128]
[1759902960366,3.6132,4438.6,4438.5,1.65810349]
[1759902960568,0.4054,4438.6,4438.5,1.65810349]
[1759902961071,0.6234,4438.6,4438.5,1.65810349]
[1759902962366,0.4054,4438.6,4438.5,1.65810349]
[1759902967567,0.6317,4438.6,4438.5,1.65810349]
[1759902969481,4.88274027,4438.6,4438.5,0.6635]
[1759902969679,4.88274027,4438.6,4438.5,0.3198]
[1759902969975,4.88274027,4438.6,4438.5,0.5475]
[1759902970277,4.88274027,4438.6,4438.5,0.6749]
[1759902971780,4.88274027,4438.6,4438.5,0.5475]
[1759902972079,4.88274027,4438.6,4438.5,0.3198]
[1759902972376,0.83885,4438.0,4437.9,0.33]
[1759902972577,1.16555,4438.0,4437.9,0.33]
[1759902972781,0.83885,4438.0,4437.9,0.7841]
[1759902973274,0.4334,4438.0,4437.9,1.55900349]
[1759902975379,0.40544,4438.1,4437.9,1.55900349]
[1759902975678,0.63174,4438.1,4438.0,0.9115]
[1759902976578,0.226,4438.2,4438.0,0.5815]
[1759902976779,0.63144,4438.2,4438.1,0.7841]
[1759902976982,1.39154,4438.2,4438.1,0.7841]
[1759902977481,0.83884,4438.2,4438.1,0.7841]
[1759902980182,1.16554,4438.2,4438.1,0.5577]
[1759902980681,1.16554,4438.2,4437.8,0.00166247]
[1759902980891,1.16554,4438.2,4437.8,0.22936247]
[1759902980892,0.83886,4437.9,4437.8,0.22936247]
[1759902981182,1.16556,4437.9,4437.8,0.22936247]
[1759902981484,1.16556,4437.9,4437.8,0.55936247]
[1759902983184,1.16556,4437.9,4437.8,0.00166247]
[1759902983682,1.67443277,4437.9,4437.8,0.00166247]
[1759902984274,1.16556,4437.9,4437.8,0.00166247]
[1759902985179,1.16556,4437.9,4437.8,0.33166247]
[1759902986686,0.83886,4437.9,4437.8,0.78576247]
[1759902986987,1.06486,4437.9,4437.8,0.78576247]
[1759902987284,1.39156,4437.9,4437.8,0.78576247]
[1759902988686,1.16556,4437.9,4437.8,0.78576247]
[1759902989787,0.40546,4437.9,4437.8,0.78576247]
[1759902990089,0.40544,4438.1,4438.0,0.9115]
[1759902990274,0.83884,4438.1,4438.0,0.9115]
[1759902992984,0.63174,4438.1,4438.0,1.87701581]
[1759902993986,0.63144,4438.2,4438.0,2.28245581]
[1759902994186,0.63144,4438.2,4438.1,0.7841]
[1759902994384,0.40544,4438.2,4438.1,0.7841]
[1759902994586,0.40542,4438.4,4438.3,0.7841]
[1759902994781,0.40541,4438.4,4438.3,0.7841]
[1759902995086,0.40541,4438.5,4438.4,0.7841]
[1759902995286,0.40541,4438.5,4438.4,1.74961581]
[1759902995887,0.00187048,4438.7,4438.5,0.4465]
[1759902996093,0.40726048,4438.7,4438.6,0.7526]
[1759902996290,0.83486048,4438.7,4438.6,0.7526]
[1759902996596,1.15476048,4438.7,4438.6,0.7526]
[1759902997493,0.83486048,4438.7,4438.6,0.7526]
[1759902999193,1.15476048,4438.7,4438.6,0.7526]
[1759903007505,0.32177048,4438.7,4438.0,0.8866]
[1759903007708,0.9799,4438.6,4438.5,0.5418]
[1759903007909,1.3853,4438.6,4438.5,0.6753]
[1759903009709,1.3853,4438.6,4438.5,0.3347]
[1759903009909,0.62404,4438.1,4438.0,1.63471581]
[1759903010109,0.62404,4438.1,4438.0,1.85211581]
[1759903010310,0.2186,4438.1,4438.0,1.85211581]
[1759903010509,0.40544,4438.2,4438.0,1.92285581]
[1759903010710,0.40544,4438.2,4438.1,0.7592]
[1759903016813,0.62404,4438.2,4438.1,0.7592]
[1759903017809,0.84644,4438.2,4438.1,0.7592]
[1759903018011,0.84644,4438.2,4438.1,0.9852]
[1759903018606,0.84644,4438.2,4438.1,0.7592]
[1759903018809,0.84644,4438.2,4438.1,0.9852]
[1759903019420,1.15934,4438.2,4438.1,0.9852]
[1759903019621,1.15934,4438.2,4438.1,0.7592]
[1759903019823,1.15934,4438.2,4438.1,0.9852]
[1759903020323,0.84644,4438.2,4438.1,0.9852]
[1759903020525,0.441,4438.2,4438.1,0.9852]
[1759903020725,0.226,4438.4,4438.3,0.7592]
[1759903022121,0.4446,4438.4,4438.3,0.7592]
[1759903022522,0.2186,4438.4,4438.3,0.7592]
[1759903027331,0.40541,4438.5,4438.4,0.7572]
[1759903027532,0.40541,4438.5,4438.4,1.72271581]
[1759903027923,0.61091,4438.5,4438.4,1.72271581]
[1759903030431,0.00187048,4438.7,4438.6,0.7572]
[1759903031130,1.13551,4438.4,4438.3,0.2211]
[1759903031330,0.82271,4438.4,4438.3,0.442]
[1759903031526,0.82271,4438.4,4438.3,0.7572]
[1759903031734,1.13551,4438.4,4438.3,0.5363]
[1759903032242,1.13551,4438.4,4438.3,0.7572]
[1759903032534,0.82271,4438.4,4438.3,0.7572]
[1759903035038,4.85077202,4438.4,4438.3,0.7572]
[1759903037436,4.53797202,4438.4,4438.3,0.7572]
[1759903038241,4.85077202,4438.4,4438.3,0.7572]
[1759903039337,0.50746202,4438.4,4438.3,0.7572]
[1759903039641,0.50746202,4438.4,4438.0,1.31891581]
[1759903039642,0.73197048,4438.7,4438.6,0.5363]
[1759903039842,1.23934911,4438.7,4438.6,0.5363]
[1759903042338,1.23934911,4438.7,4438.6,0.7572]
[1759903043435,0.50924911,4438.7,4438.6,0.7572]
[1759903043739,0.00187048,4438.7,4438.6,0.7572]
[1759903043941,0.00187048,4438.7,4438.6,0.94148941]
[1759903044145,3.2078,4439.4,4439.3,0.7572]
[1759903044445,3.2078,4439.4,4439.3,1.72271581]
[1759903045140,3.2103179,4439.4,4439.3,42.52271581]
[1759903046335,0.0025179,4439.4,4439.3,42.52271581]
[1759903047945,0.0025179,4439.4,4439.3,43.1049119]
[1759903053249,0.3128,4440.6,4440.3,0.7572]
[1759903053250,3.4133,4440.4,4440.3,0.7572]
[1759903053446,3.6251,4440.4,4440.3,1.53105595]
[1759903053646,3.9379,4440.4,4440.3,1.53105595]
[1759903054251,4.34597481,4440.4,4440.3,1.53105595]
[1759903055055,3.21064481,4440.4,4440.3,1.53105595]
[1759903055347,3.95144481,4440.4,4440.0,0.1235]
[1759903055553,0.81676,4440.1,4440.0,0.5503]
[1759903055851,0.40525,4440.3,4440.0,0.5503]
[1759903056053,3.21064481,4440.4,4440.3,0.3215]
[1759903056243,3.21064481,4440.4,4440.3,0.7483]
[1759903056650,3.21064481,4440.4,4440.3,3.31284987]
[1759903056850,0.00284481,4440.4,4440.3,1.52215595]
[1759903059942,0.00284481,4440.4,4440.3,3.28439471]
[1759903063348,3.2078,4440.9,4440.3,6.72415066]
[1759903063553,4.36143,4441.5,4441.4,0.5527]
[1759903063747,4.36143,4441.5,4441.4,1.32655595]
[1759903064148,4.04363,4441.5,4441.4,1.55205595]
[1759903064342,4.04565526,4441.5,4441.4,1.55367223]
[1759903064549,3.83055526,4441.5,4441.4,1.55367223]
[1759903065155,3.20982526,4441.5,4441.4,1.55367223]
[1759903065357,3.42542526,4441.5,4441.4,1.55367223]
[1759903068154,3.20982526,4441.5,4441.4,1.55367223]
[1759903068956,3.95832526,4441.5,4441.4,0.00161628]
[1759903069162,4.25182526,4441.5,4441.4,0.00161628]
[1759903070163,3.64052526,4441.5,4441.4,0.77981628]
[1759903070659,3.95832526,4441.5,4441.4,0.77981628]
[1759903071370,3.95832526,4441.5,4441.4,1.55367223]
[1759903073866,3.20982526,4441.5,4441.4,1.55367223]
[1759903074469,3.42542526,4441.5,4441.4,1.55367223]
[1759903075871,3.20982526,4441.5,4441.4,1.55367223]
[1759903076968,0.00202526,4441.5,4441.4,1.55367223]
[1759903077275,0.00202526,4441.5,4441.4,6.55367223]
[1759903077772,0.00202526,4441.5,4441.4,47.35367223]
[1759903078673,0.00202526,4441.5,4441.4,42.35367223]
[1759903083877,0.00202526,4441.5,4441.4,42.57967223]
[1759903084979,0.00202526,4441.5,4441.4,43.35352818]
[1759903085278,0.00202526,4441.5,4441.4,42.57967223]
[1759903086076,0.4322,4442.4,4442.3,0.4436]
[1759903086282,0.4322,4442.4,4442.3,1.53305595]
[1759903086283,0.83725,4442.4,4442.3,1.53305595]
[1759903087180,0.83952392,4442.4,4442.3,0.7592]
[1759903087570,0.63332392,4442.4,4442.3,0.7592]
[1759903089179,0.83952392,4442.4,4442.3,0.7592]
[1759903089576,1.38572392,4442.4,4442.3,0.7592]
[1759903089773,1.38572392,4442.4,4441.4,0.00161628]
[1759903089774,0.8199,4441.5,4441.4,0.00161628]
[1759903090074,1.15758,4441.0,4440.9,0.3156]
[1759903090270,4.36538,4441.0,4440.9,0.5371]
[1759903090972,4.36538,4441.0,4440.9,0.53994717]
[1759903091177,4.36538,4441.0,4440.9,0.31844717]
[1759903091576,4.36538,4441.0,4440.9,0.53994717]
[1759903096587,4.36538,4441.0,4440.9,0.31844717]
[1759903097886,4.25258,4441.0,4440.9,0.76204717]
[1759903098586,4.59138,4441.0,4440.9,0.76204717]
[1759903098888,4.59138,4441.0,4440.9,0.31844717]
[1759903099382,0.40525,4440.2,4440.1,0.3156]
[1759903099582,4.59145,4440.2,4440.1,0.3156]
[1759903100190,4.59145,4440.2,4440.1,0.53956086]
[1759903100389,4.59145,4440.2,4440.1,0.76166086]
[1759903102287,4.59145,4440.2,4440.1,0.53956086]
[1759903102792,4.59145,4440.2,4440.1,2.36023066]
[1759903104687,4.59145,4440.2,4440.1,1.82313066]
[1759903105091,4.59145,4440.2,4440.1,2.13873066]
[1759903106593,4.59145,4440.2,4440.1,2.36023066]
[1759903107294,4.59145,4440.2,4440.1,1.82313066]
[1759903107594,4.59145,4440.2,4440.1,2.13873066]
[1759903108289,4.59145,4440.2,4440.1,2.36023066]
[1759903109289,0.5462,4439.2,4439.1,0.3156]
[1759903109491,1.38374,4439.2,4439.1,0.5371]
[1759903110093,1.38374,4439.2,4439.1,0.3156]
[1759903110298,0.40539,4438.7,4438.6,41.1156]
[1759903110498,0.40539,4438.7,4438.6,41.11776987]
[1759903111996,0.4136,4438.7,4438.6,41.11776987]
[1759903112390,0.4136,4438.7,4438.6,42.87870574]
[1759903113197,0.2062,4438.7,4438.6,42.87870574]
[1759903113396,0.40539,4438.8,4438.7,0.7592]
[1759903113897,0.40538,4438.9,4438.7,0.7592]
[1759903114100,0.61158,4438.9,4438.8,0.7592]
[1759903116192,0.40536,4439.1,4439.0,0.1324]
[1759903116388,0.63136,4439.1,4439.0,0.8897]
[1759903116998,0.85696,4439.1,4439.0,0.8897]
[1759903117198,1.07226,4439.1,4439.0,0.8897]
[1759903117399,1.39426,4439.1,4439.0,0.8897]
[1759903117901,0.84626,4439.1,4439.0,0.8897]
[1759903118400,1.16826,4439.1,4439.0,0.8897]
[1759903119389,0.84626,4439.1,4439.0,0.8897]
[1759903120301,0.40536,4439.1,4439.0,0.8897]
[1759903121501,0.62286,4439.1,4439.0,0.8897]
[1759903125494,0.40777612,4439.2,4439.1,0.40535]
[1759903125701,0.40777612,4439.2,4439.1,1.17615]
[1759903125897,0.40777612,4439.2,4439.1,0.7708]
[1759903126696,0.62527612,4439.2,4439.1,0.7708]
[1759903126902,0.83327612,4439.2,4439.1,0.7708]
[1759903127096,1.14437612,4439.2,4439.1,0.7708]
[1759903127597,0.83327612,4439.2,4439.1,0.7708]
[1759903128096,0.83326612,4439.2,4439.1,1.17615]
[1759903128296,0.62526612,4439.2,4439.1,0.7708]
[1759903129906,0.00242612,4439.2,4439.1,0.7708]
[1759903130797,0.21992612,4439.2,4439.1,0.7708]
[1759903131299,0.42792612,4439.2,4439.1,0.7708]
[1759903137606,0.73902612,4439.2,4439.1,0.7708]
[1759903139296,0.73902612,4439.2,4439.1,0.3195]
[1759903140997,0.73902612,4439.2,4439.1,0.5462]
[1759903141205,0.73902612,4439.2,4439.1,0.3195]
[1759903141409,1.14198,4438.8,4438.7,1.19117516]
[1759903141909,1.14198,4438.8,4438.7,1.51067516]
[1759903142409,1.36798,4438.8,4438.7,0.3195]
[1759903142605,0.7366,4438.7,4438.6,0.00216987]
[1759903142803,1.24819753,4438.7,4438.6,0.00216987]
[1759903144214,0.7366,4438.7,4438.6,0.00216987]
[1759903144907,1.24745155,4438.7,4438.6,0.00216987]
[1759903145308,0.7366,4438.7,4438.6,0.00216987]
[1759903145907,0.7366,4438.7,4438.6,0.32886987]
[1759903147914,0.9626,4438.7,4438.6,0.55046987]
[1759903148414,0.9626,4438.7,4438.6,0.76136987]
[1759903150915,0.6515,4438.7,4438.6,0.76136987]
[1759903151409,0.9685,4438.7,4438.6,0.76136987]
[1759903153113,0.7425,4438.7,4438.6,0.76136987]
[1759903153315,0.9685,4438.7,4438.6,0.76136987]
[1759903155820,0.4255,4438.7,4438.6,0.76136987]
[1759903156013,0.4435,4438.7,4438.6,0.76136987]
[1759903157611,0.4435,4438.7,4438.6,1.16676987]
[1759903157811,0.4435,4438.7,4438.6,0.76136987]
[1759903164825,0.2175,4438.7,4438.6,0.76136987]
[1759903165016,0.4435,4438.7,4438.6,0.76136987]
[1759903169231,0.9685,4438.7,4438.6,0.76136987]
[1759903169423,0.9685,4438.7,4438.6,0.55046987]
[1759903171328,0.9685,4438.7,4438.6,0.76136987]
[1759903171728,0.6515,4438.7,4438.6,0.76136987]
[1759903171935,1.79027838,4439.2,4439.1,1.16455]
[1759903171936,0.00242612,4439.2,4439.1,1.16455]
[1759903172228,3.419,4440.5,4440.4,0.4325]
[1759903172424,3.944,4440.5,4440.4,1.20697226]
[1759903172626,3.944,4440.5,4440.4,1.53367226]
[1759903173027,4.17205332,4440.5,4440.4,1.53367226]
[1759903174926,4.57727332,4440.5,4440.4,0.5483]
[1759903175119,0.82449,4439.8,4439.7,0.3267]
[1759903175324,1.16229,4439.8,4439.7,0.3267]
[1759903175525,1.16229,4439.8,4439.7,0.5512]
[1759903175824,1.16229,4439.8,4439.7,0.775]
[1759903176332,0.757,4439.8,4439.7,0.775]
[1759903176630,0.4192,4439.8,4439.7,0.775]
[1759903177630,0.757,4439.8,4439.7,0.775]
[1759903179330,0.4192,4439.8,4439.7,0.775]
[1759903179826,0.2112,4439.8,4439.7,0.775]
[1759903180024,3.4338,4440.0,4439.8,0.3258]
[1759903180229,4.06277,4440.0,4439.9,1.54347226]
[1759903180831,4.61907,4440.0,4439.9,0.769]
[1759903186023,1.41127,4440.0,4439.9,0.769]
[1759903189129,0.226,4440.0,4439.9,0.769]
[1759903189335,1.006,4440.0,4439.9,0.769]
[1759903190828,0.4497,4440.0,4439.9,0.769]
[1759903191029,0.96304,4440.3,4440.2,0.769]
[1759903191231,1.41124,4440.3,4440.2,1.54347226]
[1759903191431,1.41124,4440.3,4440.2,1.31617226]
[1759903192028,0.40526,4440.1,4440.0,0.90787226]
[1759903192234,1.18526,4440.1,4440.0,1.10027226]
[1759903192634,1.18526,4440.1,4440.0,1.31617226]
[1759903197844,1.18526,4440.1,4440.0,1.54347226]
[1759903198044,1.18526,4440.1,4440.0,1.67687226]
[1759903199545,1.18526,4440.1,4440.0,1.54347226]
[1759903200545,1.18526,4440.1,4440.0,0.769]
[1759903200745,1.18526,4440.1,4440.0,1.54347226]
[1759903201046,0.78,4440.1,4440.0,1.67687226]
[1759903203045,0.78,4440.1,4440.0,1.54347226]
[1759903206652,0.226,4440.3,4440.0,1.74924226]
[1759903206840,1.19687332,4440.5,4440.4,0.7554]
[1759903207043,1.70226792,4440.5,4440.4,0.7554]
[1759903207743,1.83596792,4440.5,4440.4,0.5293]
[1759903209351,0.95904792,4440.5,4440.4,0.7554]
[1759903209646,0.00205332,4440.5,4440.4,0.7554]
[1759903210049,0.22805332,4440.5,4440.4,0.7554]
[1759903210349,0.00205332,4440.5,4440.4,0.7554]
[1759903211748,0.22805332,4440.5,4440.4,0.7554]
[1759903212853,0.00205332,4440.5,4440.4,0.7554]
[1759903213354,0.22805332,4440.5,4440.4,0.7554]
[1759903214152,0.22805332,4440.5,4439.9,0.226]
[1759903214153,0.85685,4440.2,4440.1,0.5293]
[1759903214364,1.19487,4440.0,4439.9,1.30377226]
[1759903214550,1.19487,4440.0,4439.9,0.5293]
[1759903214852,0.40533,4439.4,4439.2,1.92706227]
[1759903215049,1.19494,4439.2,4439.1,0.5293]
[1759903216948,1.19494,4439.2,4439.1,0.7554]
[1759903218156,0.7896,4439.2,4439.1,0.7554]
[1759903220255,0.226,4439.5,4439.4,0.40532]
[1759903220458,0.226,4439.5,4439.4,1.93519226]
[1759903220654,0.226,4439.7,4439.6,0.5343]
[1759903220848,0.226,4439.7,4439.6,0.7554]
[1759903221055,0.338,4439.8,4439.6,0.7554]
[1759903221361,3.2078,4440.0,4439.9,1.16068]
[1759903221659,3.2078,4440.0,4439.9,1.93515226]
[1759903223657,3.2078,4440.0,4439.9,2.16115226]
[1759903224055,0.22805332,4440.5,4439.9,5.36895226]
[1759903224259,0.1337,4440.0,4439.8,0.226]
[1759903224455,1.19488,4439.9,4439.7,0.77447226]
[1759903224753,0.7896,4439.8,4439.7,0.77447226]
[1759903224954,0.7896,4439.8,4438.2,3.56840312]
[1759903224955,0.63134,4439.2,4439.1,1.92706227]
[1759903225150,0.63134,4439.2,4439.1,0.5293]
[1759903225151,1.19494,4439.2,4439.1,0.5293]
[1759903225759,0.3597,4439.5,4438.8,3.61317]
[1759903225760,0.338,4439.0,4438.9,0.3082]
[1759903225957,0.7896,4439.0,4438.9,0.5293]
[1759903226158,0.7896,4439.0,4438.9,0.7554]
[1759903226864,0.226,4439.0,4438.9,4.73767226]
[1759903227463,0.7896,4439.0,4438.9,4.73767226]
[1759903229858,0.7896,4439.0,4438.9,4.92797154]
[1759903230462,1.19494,4439.3,4439.2,0.7554]
[1759903231165,1.19494,4439.3,4439.2,1.16074]
[1759903231367,0.7896,4439.3,4439.2,1.16074]
[1759903231761,0.226,4439.6,4439.2,1.16074]
[1759903231762,0.96931,4439.6,4439.3,0.40532]
[1759903232068,0.96931,4439.6,4439.5,1.84647154]
[1759903232069,0.79,4439.6,4439.5,1.84647154]
[1759903232268,0.564,4439.6,4439.5,1.84647154]
[1759903232569,0.564,4439.6,4439.5,0.5293]
[1759903232570,0.7896,4439.6,4439.5,0.5293]
[1759903233161,0.7896,4439.6,4439.5,0.8817]
[1759903233769,0.4516,4439.6,4439.5,0.8817]
[1759903234470,0.7896,4439.6,4439.5,0.8817]
[1759903236071,0.226,4439.6,4439.5,0.8817]
[1759903236666,0.7751,4439.6,4439.5,0.8817]
[1759903236862,0.7751,4439.6,4439.5,0.7554]
[1759903237964,0.3597,4440.0,4438.9,3.2078]
[1759903237965,0.40535,4439.1,4438.9,3.2078]
[1759903238169,0.85105,4439.1,4438.9,3.2078]
[1759903238366,0.9032,4439.0,4438.9,3.61317]
[1759903238565,0.9032,4439.0,4438.9,44.41317]
[1759903238968,0.9032,4439.0,4438.9,44.74807]
[1759903240372,0.9032,4439.0,4438.9,41.54027]
[1759903241369,0.9032,4439.0,4438.6,1.19294141]
[1759903241370,1.16859,4438.7,4438.6,0.00216987]
[1759903243174,1.16859,4438.7,4438.6,0.52576987]
[1759903243783,1.16859,4438.7,4438.6,0.21036987]
[1759903243984,1.16859,4438.7,4438.6,0.00216987]
[1759903245283,6.16859,4438.7,4438.6,0.00216987]
[1759903245475,0.7632,4437.4,4437.1,0.3154]
[1759903245782,0.4346,4436.8,4436.7,0.5236]
[1759903245975,0.7632,4436.8,4436.7,0.7388]
[1759903246380,0.76551424,4436.8,4436.7,0.74094978]
[1759903248084,0.76551424,4436.8,4436.7,0.21034978]
[1759903248387,0.76551424,4436.8,4436.7,0.52574978]
[1759903249386,0.76551424,4436.8,4436.7,2.57274994]
[1759903249582,0.76551424,4436.8,4436.7,0.74094978]
[1759903249883,0.76551424,4436.8,4436.7,0.00214978]
[1759903250685,0.76551424,4436.8,4436.7,0.52574978]
[1759903252684,4.22153,4437.6,4437.5,0.4234]
[1759903252685,3.4281,4437.6,4437.5,0.4234]
[1759903252891,0.2203,4437.8,4437.7,0.4234]
[1759903253091,0.2203,4437.8,4437.7,1.14428]
[1759903253291,0.5489,4437.8,4437.7,1.14428]
[1759903253595,0.7632,4437.8,4437.7,1.14428]
[1759903253783,0.76581687,4437.8,4437.7,0.7388]
[1759903253991,0.7632,4437.6,4437.5,1.37027154]
[1759903254189,0.7632,4437.6,4437.5,1.57847154]
[1759903254392,0.7632,4437.6,4437.5,1.89387154]